bitfinex/quotes_ETHUSD_20241223
["timestamp","ask_amount","ask_price","bid_price","bid_amount"]
[1734928161676,3.55,3345.5,3344.4,0.7686]
[1734928162044,2.98968,3344.9,3344.4,0.7686]
[1734928162546,6.53916,3345.5,3344.4,0.7686]
[1734928163067,2.98946,3345.1,3344.4,0.7686]
[1734928163264,3.0,3345.3,3344.4,0.7686]
[1734928163768,2.98925,3345.4,3344.4,0.7686]
[1734928164665,0.59311433,3345.6,3344.4,0.7686]
[1734928164979,2.98945,3345.1,3344.4,0.7686]
[1734928165186,2.98908,3345.5,3344.4,0.7686]
[1734928165484,2.98932,3345.3,3344.4,0.7686]
[1734928165979,2.98955,3345.0,3344.4,0.7686]
[1734928167082,2.98933,3345.3,3344.4,0.7186]
[1734928167278,3.55,3345.5,3344.4,0.7186]
[1734928167483,2.98938,3345.2,3344.4,0.7186]
[1734928168284,3.55,3345.5,3344.4,0.7186]
[1734928168585,15.18,3343.4,3341.2,4.76578858]
[1734928168788,3.0,3344.7,3341.0,3.1644274]
[1734928168789,3.49853557,3342.3,3341.0,0.1713274]
[1734928169097,3.55,3341.8,3341.0,0.1713274]
[1734928169256,2.99286,3341.3,3341.0,0.1213274]
[1734928169461,0.55,3341.7,3341.0,0.1213274]
[1734928169660,3.0,3342.2,3341.0,0.1213274]
[1734928169865,0.55,3341.6,3341.0,0.1213274]
[1734928170055,3.54261,3341.6,3341.0,0.9209274]
[1734928170414,0.55,3341.7,3341.0,0.9209274]
[1734928170548,3.0,3342.6,3341.0,0.9209274]
[1734928170885,4.86565031,3343.0,3341.1,0.7996]
[1734928171186,3.0,3342.8,3341.2,2.99288]
[1734928171387,4.86565031,3343.0,3341.3,0.7996]
[1734928171586,4.86565031,3343.0,3341.0,4.09717952]
[1734928171587,1.86565031,3343.0,3341.6,3.7996]
[1734928171804,2.991,3343.4,3341.7,0.59970598]
[1734928172300,0.8139,3343.6,3341.7,4.09824155]
[1734928172444,0.8139,3343.6,3342.0,0.7589]
[1734928172641,2.99062,3343.8,3342.0,0.7589]
[1734928172889,3.81987,3344.1,3342.0,0.7589]
[1734928173203,0.6108438,3344.0,3342.6,2.99164]
[1734928173347,0.6108438,3344.0,3342.3,3.75078]
[1734928173545,2.99071,3343.7,3342.3,4.77571156]
[1734928173985,3.6013238,3344.0,3342.4,2.99182]
[1734928174375,3.6013238,3344.0,3342.6,2.99166]
[1734928174687,3.0,3343.9,3342.6,2.99166]
[1734928175301,3.0,3343.8,3342.4,2.99184]
[1734928175587,3.0,3343.8,3342.5,0.77756716]
[1734928175785,0.6108438,3344.0,3342.5,0.77756716]
[1734928175969,0.55,3343.9,3342.7,2.99156]
[1734928176176,0.55,3344.0,3342.7,2.99156]
[1734928176376,3.0,3343.9,3342.7,2.99156]
[1734928176571,0.55,3343.8,3342.7,2.99156]
[1734928177098,0.55,3344.0,3342.8,0.833]
[1734928177290,3.0,3343.8,3342.8,0.833]
[1734928177593,0.55,3344.0,3342.8,1.29323072]
[1734928178668,0.55,3344.0,3342.8,3.82449]
[1734928179755,0.55,3344.0,3342.9,2.99139]
[1734928180199,0.55,3344.2,3342.9,2.99139]
[1734928180950,0.55,3344.3,3343.2,2.99107]
[1734928181287,3.55,3344.5,3343.0,2.99129]
[1734928181452,3.55,3344.5,3343.0,3.373719]
[1734928181648,3.55,3344.5,3343.1,2.99121]
[1734928182077,3.55,3344.5,3343.2,2.99113]
[1734928182792,0.55,3344.7,3343.0,0.382429]
[1734928183093,0.55,3344.7,3343.4,0.8231]
[1734928183267,1.13981425,3344.7,3343.4,0.8231]
[1734928183469,0.55,3344.7,3343.4,0.8231]
[1734928183664,3.0,3344.6,3343.4,0.8231]
[1734928183874,0.55,3344.5,3343.4,0.8231]
[1734928184284,3.55,3344.5,3343.4,0.8231]
[1734928184485,3.8129,3344.8,3343.4,0.8231]
[1734928184794,7.41654395,3344.8,3343.4,0.8231]
[1734928185173,6.80262,3344.8,3343.4,1.204515]
[1734928185464,3.8129,3344.8,3343.5,2.99082]
[1734928185665,0.8129,3344.8,3343.4,1.204515]
[1734928185987,3.55,3344.7,3343.4,4.195465]
[1734928186193,3.55,3344.7,3343.5,3.4104065]
[1734928186555,3.55,3344.7,3343.6,2.99078]
[1734928186778,0.8129,3344.8,3343.5,3.4103665]
[1734928186955,0.8129,3344.8,3343.5,0.4195465]
[1734928187155,0.8129,3344.8,3343.6,2.99076]
[1734928188188,0.55,3344.7,3343.6,2.99076]
[1734928188760,0.55,3344.7,3343.4,4.32163557]
[1734928188972,0.55,3344.7,3343.7,2.99068]
[1734928189296,0.55,3344.7,3343.5,2.99084]
[1734928189592,0.55,3344.7,3343.6,0.73124756]
[1734928189800,0.55,3344.7,3343.6,3.72202756]
[1734928190360,0.55,3344.9,3343.9,2.99051]
[1734928190556,3.55,3345.1,3343.7,0.8111]
[1734928190759,3.55,3344.9,3343.7,0.8111]
[1734928190996,2.98986,3344.7,3343.7,0.8111]
[1734928191300,3.76356,3344.7,3343.7,0.8111]
[1734928191997,3.76356,3344.7,3343.6,0.05791191]
[1734928192188,0.55,3344.6,3343.6,0.05791191]
[1734928193021,0.7737,3344.7,3343.8,3.49853557]
[1734928193536,3.5399,3344.6,3343.6,0.05791191]
[1734928193686,3.5399,3344.6,3343.4,3.0]
[1734928194020,3.5399,3344.6,3343.4,5.99094]
[1734928194543,3.5399,3344.6,3342.6,2.99168]
[1734928194544,0.55,3344.4,3342.6,2.99168]
[1734928194833,0.55,3344.2,3342.6,6.49021557]
[1734928195043,0.55,3344.2,3342.7,0.72677827]
[1734928195185,0.55,3343.9,3342.8,0.772]
[1734928195385,0.55,3343.9,3342.9,0.61334003]
[1734928195785,0.55,3344.2,3343.0,2.99126]
[1734928195989,0.55,3344.2,3343.1,2.99123]
[1734928196413,0.55,3344.2,3343.2,2.9911]
[1734928196628,6.7547,3344.6,3343.5,3.49853557]
[1734928196825,0.55,3344.5,3343.5,3.49853557]
[1734928197001,3.53998,3344.5,3343.2,3.77923]
[1734928197202,5.40563031,3344.5,3343.2,3.77923]
[1734928197404,2.41565031,3344.5,3343.2,0.7881]
[1734928198427,3.0,3344.4,3343.2,0.7881]
[1734928198631,0.55,3344.1,3343.2,0.7881]
[1734928198929,2.99062,3343.8,3342.7,0.7881]
[1734928199440,0.7648,3344.0,3342.7,0.7881]
[1734928199599,1.86565031,3343.9,3342.7,4.28663557]
[1734928199798,1.86565031,3343.9,3342.9,2.99134]
[1734928200293,1.86565031,3344.0,3342.9,2.99134]
[1734928200497,1.86565031,3344.0,3342.7,4.28663557]
[1734928200841,0.55,3343.7,3342.4,3.77996]
[1734928201059,1.3148,3343.9,3342.4,3.77996]
[1734928201060,0.55,3343.6,3342.4,3.77996]
[1734928201207,0.55,3343.5,3342.4,3.77996]
[1734928201536,0.55,3343.8,3342.4,0.7881]
[1734928201861,0.55,3343.5,3342.4,0.7881]
[1734928202062,0.55,3343.5,3342.4,1.21676356]
[1734928202203,0.55,3343.8,3342.4,3.7881]
[1734928202559,2.41565031,3343.4,3342.4,6.77995]
[1734928202903,1.86565031,3343.4,3342.7,3.49853557]
[1734928203125,1.86565031,3343.4,3343.1,3.49853557]
[1734928203731,1.86565031,3343.4,3342.6,3.0]
[1734928203911,1.86565031,3343.4,3342.7,3.75818]
[1734928204118,1.86565031,3343.4,3342.8,2.99149]
[1734928204315,2.63045031,3343.9,3342.9,2.99138]
[1734928204520,1.86565031,3343.9,3343.0,3.0]
[1734928204741,1.86565031,3343.9,3343.5,0.7666]
[1734928204944,1.86565031,3343.9,3343.5,1.19311356]
[1734928205328,1.86565031,3344.0,3343.8,2.9906]
[1734928205861,1.86565031,3344.0,3343.9,2.99052]
[1734928206261,1.86565031,3344.0,3343.5,1.19311356]
[1734928206553,0.7667,3344.2,3343.2,6.13820409]
[1734928207555,1.86565031,3344.2,3343.4,3.49853557]
[1734928208319,1.86565031,3344.3,3343.4,3.49853557]
[1734928208515,1.86565031,3344.3,3343.2,9.12934409]
[1734928208761,1.86565031,3344.3,3343.3,1.26278797]
[1734928209279,1.86565031,3344.3,3343.4,2.99093]
[1734928209816,2.99055,3343.9,3343.2,0.60581551]
[1734928210020,2.99086,3343.6,3343.1,1.25]
[1734928210323,2.99091,3343.5,3343.1,1.25]
[1734928210527,0.55,3343.6,3343.1,1.25]
[1734928210839,0.7667,3343.7,3343.1,1.25]
[1734928211044,0.55,3343.8,3343.1,1.25]
[1734928211045,4.30784,3343.2,3343.1,1.25]
[1734928211240,4.30784,3343.2,3341.5,0.7666]
[1734928211241,2.99195,3342.3,3341.5,0.7666]
[1734928211541,2.99177,3342.5,3341.5,0.7666]
[1734928212124,2.99186,3342.4,3341.5,0.7666]
[1734928212571,0.7667,3342.7,3341.5,0.7666]
[1734928212857,1.86565031,3342.5,3341.5,0.7666]
[1734928213064,1.86565031,3342.5,3341.6,3.0]
[1734928213370,0.3375116,3343.1,3343.0,3.74802]
[1734928213593,3.63124909,3343.4,3343.3,6.74775]
[1734928213871,7.85283965,3343.7,3343.5,6.74757]
[1734928214032,5.09219626,3344.1,3344.0,3.0]
[1734928214965,5.09219626,3344.1,3344.0,3.7567]
[1734928215852,0.7903,3345.3,3344.2,2.99016]
[1734928216187,0.7903,3345.3,3344.3,2.9901]
[1734928216332,0.7903,3345.3,3344.1,0.674722]
[1734928216674,0.7903,3345.3,3344.3,5.99015]
[1734928217760,0.55,3344.7,3344.0,4.76578858]
[1734928217949,0.7903,3344.4,3343.2,1.24580182]
[1734928218136,0.7903,3344.4,3343.3,1.50358148]
[1734928218674,0.7903,3344.4,3343.3,4.49461148]
[1734928219185,0.55,3344.3,3343.0,0.374802]
[1734928219366,3.54022,3344.3,3343.0,0.374802]
[1734928219571,2.99022,3344.3,3343.0,3.366112]
[1734928220557,0.7903,3344.4,3343.0,0.374802]
[1734928220761,0.7903,3344.4,3343.1,2.9912]
[1734928220963,2.99034,3344.1,3343.0,0.374802]
[1734928221459,2.99034,3344.1,3343.0,3.374802]
[1734928221631,0.55,3344.3,3343.0,3.374802]
[1734928221836,0.55,3344.3,3343.0,0.374802]
[1734928222059,0.55,3344.3,3342.8,0.60748684]
[1734928222257,0.7903,3343.5,3342.2,0.7567]
[1734928222669,2.9912,3343.2,3342.2,0.7567]
[1734928222875,0.55,3343.4,3342.0,1.24580182]
[1734928223075,2.99191,3342.4,3342.0,1.24580182]
[1734928223276,0.7903,3342.3,3342.0,1.24580182]
[1734928223643,0.7903,3342.3,3341.9,1.25]
[1734928224880,2.99213,3342.1,3341.9,1.25]
[1734928226002,0.55,3342.0,3341.9,1.25]
[1734928226694,3.55,3342.0,3341.9,1.25]
[1734928226899,4.3403,3342.0,3341.9,0.65729498]
[1734928227697,6.21360629,3342.0,3341.9,0.65729498]
[1734928227901,6.76081605,3342.0,3341.9,0.65729498]
[1734928228261,6.76081605,3342.0,3341.0,0.1213274]
[1734928228262,3.78332,3341.1,3341.0,0.1213274]
[1734928229686,0.7903,3341.1,3341.0,0.1213274]
[1734928233399,1.3403,3341.1,3341.0,0.1213274]
[1734928235392,4.3403,3341.1,3341.0,0.1213274]
[1734928235566,4.718521,3341.1,3341.0,0.1213274]
[1734928236611,1.718521,3341.1,3341.0,0.1213274]
[1734928236910,1.3403,3341.1,3341.0,0.1213274]
[1734928237633,0.59561353,3341.7,3341.0,0.1213274]
[1734928237804,0.8245,3341.7,3341.0,0.1213274]
[1734928239220,3.81703,3341.7,3341.0,0.1213274]
[1734928239565,0.8245,3341.7,3341.0,0.1213274]
[1734928240809,0.811,3342.1,3341.0,0.1213274]
[1734928240982,0.811,3342.1,3341.1,1.08294874]
[1734928241372,0.811,3342.1,3341.1,0.7715]
[1734928241706,2.99258,3341.6,3341.0,0.1213274]
[1734928243285,2.9924,3341.8,3341.0,0.1213274]
[1734928243477,0.55,3341.7,3341.0,0.1213274]
[1734928243671,3.8032,3342.1,3341.0,0.1213274]
[1734928243999,0.55,3341.9,3341.0,0.1213274]
[1734928244200,2.99242,3341.8,3341.0,0.1213274]
[1734928244399,3.55,3341.7,3341.0,0.1213274]
[1734928244610,0.55,3341.9,3341.0,0.1213274]
[1734928244611,2.993,3341.2,3341.0,0.1213274]
[1734928245418,0.8171,3341.3,3341.0,0.1213274]
[1734928245720,0.55,3341.2,3341.0,0.1213274]
[1734928246700,2.99302,3341.1,3341.0,0.1213274]
[1734928247615,0.55,3341.2,3341.0,0.1213274]
[1734928248114,3.978929,3341.2,3341.0,0.1213274]
[1734928249343,2.99286,3341.3,3341.0,0.1213274]
[1734928249514,0.55,3341.2,3341.0,0.1213274]
[1734928249814,3.55,3341.5,3341.0,0.1213274]
[1734928249982,0.55,3341.3,3341.0,0.1213274]
[1734928250182,0.55,3341.5,3341.0,0.1213274]
[1734928250403,3.54289,3341.3,3341.0,0.1213274]
[1734928250618,0.55,3341.3,3341.0,0.1213274]
[1734928250827,3.0,3341.1,3341.0,0.1213274]
[1734928251498,2.99302,3341.1,3341.0,0.1213274]
[1734928252301,3.54302,3341.1,3341.0,0.1213274]
[1734928252611,3.93878255,3341.1,3341.0,0.1213274]
[1734928253250,7.74008255,3341.1,3341.0,7.4e-06]
[1734928256213,0.94576255,3341.1,3341.0,7.4e-06]
[1734928256546,6.54302,3341.1,3341.0,7.4e-06]
[1734928257244,1.87330629,3342.2,3341.0,0.7769074]
[1734928257649,2.99213,3342.1,3341.0,0.7769074]
[1734928257943,2.99243,3341.8,3341.0,0.7769074]
[1734928258448,3.26388204,3342.3,3341.0,0.7769074]
[1734928258613,2.99225,3342.0,3341.0,0.7769074]
[1734928258810,0.55,3341.9,3341.0,0.7769074]
[1734928259050,0.7606,3341.8,3341.0,7.4e-06]
[1734928259253,2.99294,3341.2,3341.0,7.4e-06]
[1734928259543,3.54248,3341.7,3341.0,7.4e-06]
[1734928259544,0.55,3341.7,3341.0,7.4e-06]
[1734928259719,2.99291,3341.3,3341.0,7.4e-06]
[1734928259925,0.849291,3341.2,3341.0,7.4e-06]
[1734928260237,3.54302,3341.1,3341.0,7.4e-06]
[1734928260435,0.55,3341.1,3341.0,1.2500074]
[1734928260748,0.55,3341.2,3341.0,1.2500074]
[1734928261043,0.904266,3341.2,3341.0,1.2500074]
[1734928261253,2.99214,3342.1,3341.0,1.2500074]
[1734928261254,4.36712,3341.1,3341.0,1.2500074]
[1734928262212,3.54302,3341.1,3341.0,1.2500074]
[1734928262653,0.55,3341.2,3341.0,1.2500074]
[1734928262948,0.8241,3341.5,3341.0,1.2500074]
[1734928262949,3.54275,3341.4,3341.0,1.2500074]
[1734928263110,0.55,3341.2,3341.0,1.2500074]
[1734928263309,1.10217451,3341.2,3341.0,1.2500074]
[1734928263935,2.99302,3341.1,3341.0,1.2500074]
[1734928264121,3.54302,3341.1,3341.0,1.2500074]
[1734928266537,6.54302,3341.1,3341.0,1.2500074]
[1734928266732,5.42330629,3341.1,3341.0,1.2500074]
[1734928267113,8.78958254,3341.1,3341.0,1.2500074]
[1734928267313,9.59818254,3341.1,3341.0,0.87891144]
[1734928267541,9.59818254,3341.1,3341.0,0.46691823]
[1734928267949,7.72487625,3341.1,3341.0,0.46691823]
[1734928269652,6.79686288,3341.1,3341.0,0.46691823]
[1734928270850,11.16104098,3341.1,3341.0,0.46691823]
[1734928271410,11.16104098,3341.1,3341.0,0.05836478]
[1734928271617,11.71104098,3341.1,3341.0,0.05836478]
[1734928272222,11.16104098,3341.1,3341.0,0.05836478]
[1734928272421,10.35244098,3341.1,3341.0,0.05836478]
[1734928273076,4.3641781,3341.1,3341.0,0.83656478]
[1734928273362,4.3641781,3341.3,3341.0,0.83656478]
[1734928275130,1.87379476,3341.2,3341.0,0.83656478]
[1734928276159,1.87379476,3341.3,3341.0,0.83656478]
[1734928276472,1.87379476,3341.3,3341.1,0.38298348]
[1734928276620,1.87379476,3341.3,3341.0,0.83656478]
[1734928277038,1.87379476,3341.3,3341.2,2.99293]
[1734928277273,1.87379476,3341.4,3341.3,0.8081]
[1734928278578,1.87379476,3341.6,3341.3,0.8081]
[1734928280273,1.87379476,3341.7,3341.3,0.8081]
[1734928281056,1.87379476,3341.8,3341.0,0.05836478]
[1734928282182,1.87379476,3341.8,3341.1,0.8268]
[1734928282395,1.87379476,3341.5,3341.1,3.81974]
[1734928283402,3.74758953,3342.1,3341.1,3.81974]
[1734928283403,1.87379476,3341.9,3341.2,2.99293]
[1734928283679,1.87379476,3341.9,3341.4,3.81953]
[1734928284252,1.87379476,3342.2,3341.4,3.81953]
[1734928285573,1.87379476,3342.2,3341.4,0.8268]
[1734928285786,1.87379476,3342.2,3341.4,4.24030295]
[1734928285998,1.87379476,3342.2,3341.4,1.24755295]
[1734928286793,1.87379476,3342.2,3341.4,4.24030295]
[1734928287676,1.87379476,3342.3,3341.5,0.8196]
[1734928287985,1.87379476,3342.3,3341.8,2.99239]
[1734928288161,1.87379476,3342.3,3341.7,0.8196]
[1734928288603,1.87379476,3342.3,3341.9,2.99229]
[1734928288904,1.87379476,3342.3,3341.8,0.8196]
[1734928289201,1.87379476,3342.7,3341.8,0.8196]
[1734928290297,1.3344,3342.6,3341.4,0.8196]
[1734928290502,2.99193,3342.4,3341.4,0.8196]
[1734928290664,1.3344,3342.6,3341.4,0.8196]
[1734928290995,4.3344,3342.6,3341.4,0.8196]
[1734928291301,0.49113797,3342.5,3341.4,0.8196]
[1734928291600,1.87379476,3342.3,3341.4,0.8196]
[1734928291895,4.86575476,3342.3,3341.4,0.8196]
[1734928293216,2.99208,3342.2,3341.4,0.8196]
[1734928293868,2.99213,3342.1,3341.4,0.8196]
[1734928294094,1.87379476,3342.3,3341.4,0.8196]
[1734928294498,1.87379476,3342.3,3341.8,2.99236]
[1734928294698,1.87379476,3342.3,3341.9,0.8096]
[1734928295595,1.87379476,3342.8,3341.9,0.8096]
[1734928296167,4.86529476,3342.8,3341.9,0.8096]
[1734928296374,2.99178,3342.5,3341.9,0.8096]
[1734928297694,1.87379476,3342.6,3341.9,0.8096]
[1734928298581,4.87379476,3342.8,3341.9,0.8096]
[1734928298907,1.87379476,3342.8,3341.9,0.8096]
[1734928299571,1.87379476,3342.9,3341.9,3.8019]
[1734928299718,1.87379476,3342.9,3342.0,1.15579]
[1734928300350,1.87379476,3342.9,3342.1,2.99211]
[1734928300648,1.87379476,3342.9,3342.2,0.7676]
[1734928301044,1.87379476,3343.2,3342.2,0.7676]
[1734928301211,1.87379476,3343.2,3342.3,0.41399]
[1734928301548,1.87379476,3343.2,3342.4,3.75944]
[1734928301852,1.87379476,3343.2,3342.5,3.51518425]
[1734928302148,1.87379476,3343.2,3342.9,0.8045]
[1734928302335,7.3545181,3344.1,3342.9,0.8045]
[1734928302336,1.87379476,3343.6,3342.9,0.8045]
[1734928302517,1.87379476,3343.6,3342.9,4.175496]
[1734928303126,1.87379476,3343.6,3343.2,0.7752]
[1734928303337,1.87379476,3343.6,3343.0,0.7752]
[1734928303536,1.87379476,3343.6,3343.5,0.7752]
[1734928303759,1.87379476,3344.3,3343.5,3.76607]
[1734928303936,1.87379476,3344.3,3343.6,0.7752]
[1734928304760,0.55,3344.8,3343.6,3.76598]
[1734928304932,3.0,3344.7,3343.6,0.7752]
[1734928305142,0.98340569,3344.8,3343.6,0.7752]
[1734928305357,2.9898,3344.7,3343.6,0.7752]
[1734928305871,3.98340569,3344.8,3343.6,0.7752]
[1734928306104,0.49202507,3344.7,3343.6,3.76596]
[1734928306387,0.49202507,3344.7,3343.8,2.9906]
[1734928306588,5.98949,3345.1,3343.8,2.9906]
[1734928306892,5.98949,3345.1,3343.9,0.8114]
[1734928307181,1.87379476,3345.3,3344.1,0.8114]
[1734928307340,1.87379476,3345.3,3344.2,3.80164]
[1734928307544,1.87379476,3345.3,3344.3,0.8114]
[1734928307764,1.87379476,3345.3,3344.4,0.8114]
[1734928308249,2.98919,3345.4,3344.4,0.8114]
[1734928308899,5.45982185,3345.7,3344.4,0.8114]
[1734928309445,3.0,3345.6,3344.4,0.8114]
[1734928309759,3.0,3345.6,3344.4,3.80146]
[1734928309952,3.0,3345.6,3344.4,4.53312443]
[1734928310343,3.0,3345.6,3344.5,0.8048]
[1734928311093,3.0,3346.1,3344.6,0.7998]
[1734928311388,3.0,3345.8,3344.6,0.7998]
[1734928311592,0.55,3346.0,3344.6,0.7998]
[1734928311593,3.0,3345.6,3344.6,0.7998]
[1734928311741,3.0,3345.6,3344.6,0.95294644]
[1734928314341,3.53873,3346.0,3344.6,0.95294644]
[1734928314542,2.98874,3345.9,3344.6,0.95294644]
[1734928315394,2.98874,3345.9,3344.7,0.8083]
[1734928315600,1.87379476,3346.9,3344.9,3.51518425]
[1734928315811,2.98819,3346.5,3345.4,0.8083]
[1734928315952,2.98822,3346.5,3345.4,0.8083]
[1734928317971,2.98776,3347.0,3345.7,3.51518425]
[1734928318285,2.98776,3347.0,3345.8,0.8291]
[1734928318508,0.59198199,3347.1,3346.0,0.8291]
[1734928318668,0.8287,3347.5,3346.0,0.8291]
[1734928318669,2.98755,3347.3,3346.0,0.8291]
[1734928318870,2.98758,3347.2,3346.0,0.8291]
[1734928319069,2.98758,3347.2,3346.2,0.8291]
[1734928319635,2.98758,3347.2,3345.9,3.42313842]
[1734928319636,2.98705,3347.8,3346.6,0.8291]
[1734928319922,2.98737,3347.5,3346.7,0.8291]
[1734928320603,0.58707325,3347.9,3346.7,0.8291]
[1734928320767,2.98745,3347.4,3346.7,0.8291]
[1734928321193,2.98722,3347.6,3346.7,0.8291]
[1734928321767,3.0,3347.8,3346.7,0.8291]
[1734928321967,0.58707325,3347.9,3346.9,0.8147]
[1734928321968,3.0,3347.9,3346.9,0.8147]
[1734928322218,0.0172878,3348.0,3347.0,0.8147]
[1734928322581,3.0041578,3348.0,3347.0,0.8147]
[1734928324014,2.98698,3347.9,3347.0,0.8147]
[1734928325020,0.0172878,3348.0,3347.7,3.51518425]
[1734928325316,0.0172878,3348.0,3347.8,1.42983042]
[1734928326687,0.0172878,3348.0,3347.9,0.7796]
[1734928329398,0.0172878,3348.0,3347.9,3.7796]
[1734928330695,0.0172878,3348.0,3347.9,0.7796]
[1734928331087,3.0042178,3348.0,3347.4,0.7765]
[1734928331295,0.0172878,3348.0,3347.4,0.7765]
[1734928333295,0.0172878,3348.0,3347.5,2.9873]
[1734928333537,0.0172878,3348.0,3347.6,0.37638]
[1734928333822,0.0172878,3348.0,3347.4,0.7765]
[1734928335344,0.0172878,3348.0,3347.6,2.98718]
[1734928336006,0.0172878,3348.0,3347.4,0.7765]
[1734928338538,0.0172878,3348.0,3347.7,0.7853]
[1734928338720,0.0172878,3348.0,3347.7,3.77236]
[1734928338903,0.0172878,3348.0,3347.8,1.02875443]
[1734928339815,0.0172878,3348.0,3347.1,0.7853]
[1734928340040,0.0172878,3348.0,3346.8,1.26317127]
[1734928340041,0.7814,3347.7,3346.8,1.26317127]
[1734928340344,0.7986878,3348.0,3346.8,0.7853]
[1734928340640,0.7986878,3348.0,3346.9,3.51518425]
[1734928340799,0.0172878,3348.0,3347.0,0.7853]
[1734928341405,0.0172878,3348.0,3347.1,2.98766]
[1734928341606,0.0172878,3348.0,3347.3,2.98744]
[1734928341855,0.0172878,3348.0,3347.5,2.98727]
[1734928342608,0.0172878,3348.0,3347.4,0.377274]
[1734928342805,0.8093,3347.9,3347.0,4.76578858]
[1734928343035,2.98722,3347.6,3347.0,4.76578858]
[1734928343641,0.8093,3347.5,3347.0,4.76578858]
[1734928344547,0.8093,3347.5,3346.5,3.0]
[1734928344772,0.8093,3347.5,3346.4,3.7558]
[1734928344954,2.9874,3347.4,3346.5,0.64734371]
[1734928345453,2.9874,3347.4,3346.4,3.7558]
[1734928345754,2.9881,3346.7,3345.4,2.98916]
[1734928345954,2.98825,3346.5,3345.3,0.7918]
[1734928346252,0.7828,3346.5,3345.4,2.98917]
[1734928346454,3.77104,3346.5,3345.5,0.64986071]
[1734928346747,2.98833,3346.4,3345.5,0.64986071]
[1734928347113,2.98833,3346.4,3345.3,0.7918]
[1734928347340,2.98833,3346.4,3345.2,2.71763711]
[1734928347341,2.98857,3346.1,3345.1,0.61252691]
[1734928347543,2.98857,3346.1,3344.1,2.99028]
[1734928347544,2.98919,3345.4,3344.1,2.99028]
[1734928347729,2.71763711,3345.5,3344.0,0.7756]
[1734928347938,2.98906,3345.6,3344.3,2.99014]
[1734928348163,3.0,3345.8,3344.5,0.7756]
[1734928348449,2.98893,3345.7,3344.5,0.7756]
[1734928348826,2.98904,3345.6,3344.5,0.7756]
[1734928349027,2.98892,3345.7,3344.5,0.7756]
[1734928349424,2.98892,3345.7,3344.5,3.7756]
[1734928349784,2.98892,3345.7,3344.6,0.676564]
[1734928350067,0.8287,3345.9,3344.8,2.98963]
[1734928350218,0.8287,3345.9,3344.6,0.676564]
[1734928350424,3.81748,3345.9,3344.6,0.676564]
[1734928351084,0.8287,3345.9,3344.6,0.676564]
[1734928351257,0.8287,3345.9,3344.5,0.7756]
[1734928351454,2.98902,3345.6,3344.5,0.7756]
[1734928352379,0.8285,3345.8,3344.2,4.76578858]
[1734928352555,0.8285,3345.8,3344.2,5.52628858]
[1734928352556,2.98924,3345.4,3344.2,5.52628858]
[1734928352750,2.98924,3345.4,3344.3,1.21190656]
[1734928352951,2.98928,3345.3,3344.3,1.21190656]
[1734928353158,2.98954,3345.0,3344.2,0.7605]
[1734928353354,0.8053,3344.9,3343.5,0.7954]
[1734928353561,2.9899,3344.6,3343.5,0.7954]
[1734928353962,0.8053,3344.9,3343.5,1.38398746]
[1734928354164,3.80695,3343.9,3342.8,0.7954]
[1734928354362,3.80695,3343.9,3342.9,0.60876384]
[1734928354683,3.80695,3343.9,3342.8,0.7954]
[1734928355182,0.8164,3343.9,3342.8,0.7954]
[1734928355986,2.99066,3343.8,3342.8,0.7954]
[1734928356197,0.8164,3343.9,3342.8,0.7954]
[1734928356198,2.99086,3343.6,3342.8,0.7954]
[1734928356354,3.0,3343.4,3342.3,0.7954]
[1734928356554,0.8164,3343.4,3342.3,0.7954]
[1734928357083,2.99126,3343.1,3342.3,0.7954]
[1734928357297,2.99126,3343.1,3341.8,0.7619]
[1734928357998,2.99107,3343.3,3341.9,2.99228]
[1734928358171,2.99107,3343.3,3342.0,0.43443905]
[1734928359289,2.99117,3343.2,3342.0,0.43443905]
[1734928359656,3.80742,3343.4,3342.0,0.43443905]
[1734928359852,3.0,3343.3,3342.0,2.99214]
[1734928360056,2.99108,3343.3,3342.0,2.99214]
[1734928360389,2.99108,3343.3,3341.8,3.7619]
[1734928360592,3.5056529,3342.5,3341.1,0.14671433]
[1734928360795,3.8123,3341.6,3339.6,0.14791727]
[1734928360969,2.99314,3341.0,3339.5,5.59668858]
[1734928361165,4.47993058,3340.9,3339.5,0.8309]
[1734928361580,0.8123,3340.8,3339.5,0.8309]
[1734928361891,0.59536254,3341.2,3339.6,0.64276686]
[1734928362065,3.7601,3341.3,3339.6,0.64276686]
[1734928362265,2.99327,3340.9,3339.6,0.64276686]
[1734928362471,2.99305,3341.1,3339.6,0.64276686]
[1734928362653,6.75296,3341.3,3339.6,0.64276686]
[1734928363025,6.75296,3341.3,3339.7,0.20588451]
[1734928363312,0.7601,3341.3,3339.7,0.20588451]
[1734928363635,0.7601,3341.8,3340.1,3.7981]
[1734928363795,0.7601,3341.8,3340.2,2.99379]
[1734928363796,3.75253,3341.8,3340.2,2.99379]
[1734928363976,3.367753,3341.7,3340.3,7.14948786]
[1734928364311,0.375253,3341.7,3340.4,2.99363]
[1734928364483,3.75251,3341.8,3340.4,2.99363]
[1734928364689,0.7601,3341.8,3340.5,2.99352]
[1734928365881,5.99234,3341.9,3340.6,0.7891]
[1734928366076,3.55,3342.1,3340.6,3.78256]
[1734928366318,6.54216,3342.1,3340.6,3.78256]
[1734928366521,6.54216,3342.1,3340.7,0.378256]
[1734928367221,2.99241,3341.8,3340.7,0.378256]
[1734928367416,3.5056529,3341.7,3340.6,0.7891]
[1734928367634,2.99269,3341.5,3340.6,0.7891]
[1734928367830,0.8002,3341.4,3340.6,0.7891]
[1734928367983,6.79299,3341.4,3340.2,0.771]
[1734928368289,2.99296,3341.2,3340.2,0.771]
[1734928368495,3.5056529,3341.3,3340.2,0.771]
[1734928368915,3.8002,3341.4,3340.2,3.76481]
[1734928369702,6.793,3341.4,3340.2,0.771]